bitfinex-derivatives/quotes_BTCF0:USTF0_20250318
["timestamp","ask_amount","ask_price","bid_price","bid_amount"]
[1742272667160,0.1822132,83054.0,83053.0,1.0063133]
[1742272667365,0.1822132,83054.0,83053.0,0.4763133]
[1742272667871,0.1822132,83054.0,83053.0,1.0823133]
[1742272668173,0.1822132,83054.0,83053.0,0.5923133]
[1742272668773,0.1822132,83054.0,83053.0,0.7023133]
[1742272668968,0.1822132,83054.0,83053.0,0.5923133]
[1742272670859,0.1512132,83054.0,83053.0,0.7923133]
[1742272671064,0.1512132,83054.0,83053.0,0.5923133]
[1742272671982,0.0308,83054.0,83053.0,0.5923133]
[1742272672177,0.17970066,83070.0,83061.0,0.120403]
[1742272672372,0.12058435,83062.0,83061.0,0.400403]
[1742272672765,0.15188435,83062.0,83061.0,0.500403]
[1742272672969,0.15188435,83062.0,83061.0,0.761203]
[1742272673360,0.03148065,83062.0,83061.0,0.761203]
[1742272673667,0.15188225,83062.0,83061.0,0.794103]
[1742272674075,0.03348065,83062.0,83061.0,0.794103]
[1742272674264,0.00218065,83062.0,83061.0,0.794103]
[1742272674460,0.12258225,83062.0,83061.0,1.314103]
[1742272674665,0.12258225,83062.0,83061.0,0.794103]
[1742272674867,0.15498225,83062.0,83061.0,0.794103]
[1742272676974,0.15498225,83062.0,83061.0,1.314103]
[1742272677178,0.15498225,83062.0,83061.0,0.794103]
[1742272677577,0.03458065,83062.0,83061.0,0.794103]
[1742272677978,0.00218065,83062.0,83061.0,1.314103]
[1742272678176,0.0601921,83074.0,83073.0,0.1203842]
[1742272678379,0.2112763,83074.0,83073.0,0.4003842]
[1742272678976,0.1510842,83074.0,83073.0,0.9723842]
[1742272679180,0.1510842,83074.0,83073.0,0.5483842]
[1742272679374,0.1822842,83074.0,83073.0,0.59061778]
[1742272679968,0.1822842,83074.0,83073.0,0.79061778]
[1742272680169,0.1822842,83074.0,83073.0,0.59061778]
[1742272680369,0.1862842,83074.0,83073.0,0.59061778]
[1742272680768,0.1862842,83074.0,83073.0,0.31061778]
[1742272680975,0.2158842,83074.0,83073.0,0.31061778]
[1742272682481,0.2158842,83074.0,83073.0,0.56061778]
[1742272682773,0.2158842,83074.0,83073.0,0.31061778]
[1742272683775,0.1203914,83069.0,83068.0,0.3608]
[1742272684170,0.1203914,83069.0,83068.0,0.5437929]
[1742272684571,0.1834914,83069.0,83068.0,0.5437929]
[1742272685176,0.1844914,83069.0,83068.0,0.5437929]
[1742272685682,0.1844914,83069.0,83068.0,0.1829929]
[1742272685875,0.1844914,83069.0,83068.0,0.5437929]
[1742272686481,0.1844914,83069.0,83068.0,0.6437929]
[1742272686965,0.1844914,83069.0,83068.0,0.8637929]
[1742272687167,0.1844914,83069.0,83068.0,0.7737929]
[1742272687580,0.1844914,83069.0,83068.0,0.88567737]
[1742272687884,0.1844914,83069.0,83068.0,0.78567737]
[1742272688073,0.1844914,83069.0,83068.0,0.88567737]
[1742272688276,0.1844914,83069.0,83068.0,0.78567737]
[1742272688672,0.1523914,83069.0,83068.0,0.78567737]
[1742272690077,0.1523914,83069.0,83068.0,1.15567737]
[1742272690275,0.1523914,83069.0,83068.0,0.99567737]
[1742272690476,0.1523914,83069.0,83068.0,0.78567737]
[1742272692174,0.1846914,83069.0,83068.0,0.78567737]
[1742272692875,0.1846914,83069.0,83068.0,1.00567737]
[1742272693078,0.0643,83069.0,83068.0,0.78567737]
[1742272695289,0.0643,83069.0,83068.0,0.99567737]
[1742272695487,0.0643,83069.0,83068.0,0.78567737]
[1742272696486,0.0643,83069.0,83068.0,1.00567737]
[1742272696679,0.0643,83069.0,83068.0,0.78567737]
[1742272698684,0.0643,83069.0,83068.0,1.00567737]
[1742272698990,0.0643,83069.0,83068.0,0.78567737]
[1742272699390,0.1846914,83069.0,83068.0,0.78567737]
[1742272699982,0.1846914,83069.0,83068.0,0.89567737]
[1742272701591,0.0643,83069.0,83068.0,0.89567737]
[1742272701784,0.1846914,83069.0,83068.0,0.89567737]
[1742272702189,0.1846914,83069.0,83068.0,1.17567737]
[1742272702378,0.0643,83069.0,83068.0,0.89567737]
[1742272702778,0.1846914,83069.0,83068.0,1.01163737]
[1742272703388,0.0643,83069.0,83068.0,0.90163737]
[1742272703597,0.30025531,83082.0,83080.0,0.120374]
[1742272703892,0.30025531,83082.0,83081.0,0.213474]
[1742272704095,0.36044161,83082.0,83081.0,0.473474]
[1742272704396,0.24006761,83082.0,83081.0,0.473474]
[1742272704784,0.24406761,83082.0,83081.0,0.473474]
[1742272704985,0.24758131,83082.0,83081.0,0.473474]
[1742272705194,0.36795391,83082.0,83081.0,0.473474]
[1742272706196,0.18825325,83082.0,83081.0,0.48528459]
[1742272706492,0.18425325,83082.0,83081.0,0.48528459]
[1742272706701,0.18725325,83082.0,83081.0,0.48528459]
[1742272707085,0.18425325,83082.0,83081.0,0.76528459]
[1742272709212,0.18425325,83082.0,83081.0,0.86528459]
[1742272709391,0.18425325,83082.0,83081.0,0.76528459]
[1742272709591,0.18425325,83082.0,83081.0,1.12084459]
[1742272709790,0.18425325,83082.0,83081.0,0.85084459]
[1742272712492,0.77064065,83082.0,83068.0,0.35992925]
[1742272712699,0.77064065,83082.0,83049.0,0.031]
[1742272712700,0.1203958,83066.0,83049.0,0.031]
[1742272712898,0.1204132,83054.0,83048.0,0.00883831]
[1742272713096,0.1204132,83054.0,83047.0,0.1204228]
[1742272713494,0.1834132,83054.0,83045.0,0.11596]
[1742272713701,0.1804132,83054.0,83047.0,0.1322999]
[1742272713900,0.1804132,83054.0,83045.0,0.11596]
[1742272714099,0.1804132,83054.0,83045.0,0.11614065]
[1742272714298,0.1804132,83054.0,83047.0,0.1204232]
[1742272714504,0.1804132,83054.0,83049.0,0.50124439]
[1742272714505,0.0602097,83050.0,83049.0,0.50124439]
[1742272714804,0.1806287,83050.0,83049.0,0.62166479]
[1742272715896,0.1806287,83050.0,83049.0,0.50124439]
[1742272716103,0.1806287,83050.0,83049.0,0.50224439]
[1742272718508,0.1806287,83050.0,83049.0,0.001]
[1742272720505,0.1204248,83046.0,83045.0,0.00018065]
[1742272720694,0.4812248,83046.0,83045.0,0.00018065]
[1742272722606,0.4812248,83046.0,83045.0,0.00118065]
[1742272725303,0.5447248,83046.0,83045.0,0.00118065]
[1742272731813,0.5447248,83046.0,83045.0,0.03288065]
[1742272732815,0.5447248,83046.0,83045.0,0.15330685]
[1742272733009,0.23560791,83051.0,83045.0,0.15330685]
[1742272733010,0.28804251,83051.0,83048.0,0.0602102]
[1742272733217,0.28804251,83051.0,83050.0,0.120419]
[1742272733609,0.31904251,83051.0,83050.0,0.182519]
[1742272734414,0.31904251,83051.0,83050.0,0.19435439]
[1742272734606,0.31904251,83051.0,83050.0,0.182519]
[1742272737319,0.2116298,83051.0,83050.0,0.182519]
[1742272737710,0.2126298,83051.0,83050.0,0.182519]
[1742272738817,0.2126298,83051.0,83050.0,0.19453547]
[1742272739313,0.1816298,83051.0,83050.0,0.19453547]
[1742272740016,0.0612094,83051.0,83050.0,0.19453547]
[1742272742224,0.0941094,83051.0,83050.0,0.19453547]
[1742272742918,0.0941094,83051.0,83050.0,0.0317]
[1742272743112,0.1204233,83047.0,83046.0,0.1482]
[1742272743310,0.1204233,83047.0,83046.0,0.2686248]
[1742272743621,0.1837233,83047.0,83046.0,0.2997248]
[1742272744625,0.1837233,83047.0,83046.0,0.3007248]
[1742272746824,0.1533233,83047.0,83046.0,0.3007248]
[1742272748023,0.21187522,83047.0,83046.0,0.3007248]
[1742272750715,0.24507522,83047.0,83046.0,0.3007248]
[1742272752025,0.12465192,83047.0,83046.0,0.3007248]
[1742272752224,0.12465192,83047.0,83046.0,0.8307248]
[1742272752429,0.05855192,83047.0,83046.0,0.3007248]
[1742272752623,0.05855192,83047.0,83046.0,0.5107248]
[1742272752820,0.05855192,83047.0,83046.0,0.5407248]
[1742272753031,0.21574709,83051.0,83050.0,0.120419]
[1742272753226,0.21574709,83051.0,83050.0,0.350419]
[1742272753728,0.00018065,83062.0,83053.0,0.1204146]
[1742272753920,0.00018065,83062.0,83053.0,1.0563746]
[1742272754230,0.00018065,83062.0,83053.0,0.6363746]
[1742272754543,0.2159227,83055.0,83054.0,0.1204132]
[1742272754829,0.2159227,83055.0,83054.0,0.6847132]
[1742272755821,0.2169227,83055.0,83054.0,0.6847132]
[1742272756016,0.2169227,83055.0,83054.0,0.6647132]
[1742272757027,0.2169227,83055.0,83054.0,0.9247132]
[1742272757230,0.2169227,83055.0,83054.0,0.7647132]
[1742272757533,0.2169227,83055.0,83054.0,0.9347132]
[1742272757534,0.1668656,83055.0,83054.0,0.9347132]
[1742272757726,0.25053405,83066.0,83054.0,0.9347132]
[1742272757727,0.3608,83088.0,83055.0,0.6020543]
[1742272757928,0.53267154,83078.0,83071.0,0.4811885]
[1742272758135,0.53267154,83078.0,83071.0,1.1171485]
[1742272758434,0.53267154,83078.0,83077.0,0.1203798]
[1742272758435,0.00172001,83078.0,83077.0,0.1203798]
[1742272758634,0.0308,83083.0,83082.0,0.1203726]
[1742272758835,0.1511711,83083.0,83082.0,0.1203726]
[1742272759432,0.1511711,83083.0,83082.0,0.50227945]
[1742272759624,0.1511711,83083.0,83082.0,0.40227945]
[1742272760530,0.1511711,83083.0,83082.0,0.3903726]
[1742272760837,0.1831711,83083.0,83082.0,0.2363326]
[1742272761228,0.1831711,83083.0,83082.0,0.1203726]
[1742272761433,0.1511711,83083.0,83082.0,0.8411726]
[1742272761632,0.1511711,83083.0,83082.0,0.7311726]
[1742272762630,0.1511711,83083.0,83082.0,1.0011726]
[1742272762825,0.1511711,83083.0,83082.0,0.7311726]
[1742272763033,0.1511711,83083.0,83082.0,1.0111726]
[1742272763229,0.031,83084.0,83083.0,0.1203711]
[1742272763541,0.1513697,83084.0,83083.0,0.3803711]
[1742272767027,0.1513697,83084.0,83083.0,0.6103711]
[1742272767233,0.1513697,83084.0,83083.0,0.3803711]
[1742272767433,0.031,83084.0,83083.0,0.8511711]
[1742272767635,0.031,83084.0,83083.0,0.7411711]
[1742272768151,0.1520674,83086.0,83085.0,0.1203682]
[1742272768347,0.1520674,83086.0,83085.0,0.3703682]
[1742272769434,0.1530674,83086.0,83085.0,0.3703682]
[1742272770643,0.1530674,83086.0,83085.0,0.4028682]
[1742272771036,0.1530674,83086.0,83085.0,0.25]
[1742272771237,0.1530674,83086.0,83085.0,0.3703682]
[1742272771649,0.120374,83081.0,83080.0,0.07228885]
[1742272771946,0.120374,83081.0,83080.0,0.20820885]
[1742272772349,0.120374,83081.0,83080.0,0.0601871]
[1742272772649,0.182274,83081.0,83080.0,0.1761071]
[1742272773149,0.182274,83081.0,83080.0,0.0611871]
[1742272773348,0.182274,83081.0,83080.0,0.4371071]
[1742272773542,0.182274,83081.0,83080.0,0.4686071]
[1742272778451,0.182274,83081.0,83080.0,0.1771071]
[1742272779945,0.182274,83081.0,83080.0,0.4371071]
[1742272782949,0.182274,83081.0,83080.0,0.1771071]
[1742272783752,0.182274,83081.0,83080.0,0.0611871]
[1742272784348,0.1203827,83075.0,83072.0,0.11592]
[1742272784647,0.4811827,83075.0,83072.0,0.236307]
[1742272784848,0.5462827,83075.0,83073.0,0.1203851]
[1742272785056,0.5462827,83075.0,83074.0,0.12056485]
[1742272785253,0.1854827,83075.0,83074.0,0.12056485]
[1742272785848,0.1854827,83075.0,83074.0,0.12256485]
[1742272786947,0.1854827,83075.0,83074.0,0.12356485]
[1742272787849,0.1854827,83075.0,83074.0,0.18896485]
[1742272788458,0.1854827,83075.0,83074.0,0.18796485]
[1742272788955,0.1854827,83075.0,83074.0,0.18696485]
[1742272789155,0.1854827,83075.0,83074.0,0.18796485]
[1742272789347,0.0651,83075.0,83074.0,0.43796485]
[1742272789548,0.1854827,83075.0,83074.0,0.43796485]
[1742272789766,0.0333,83075.0,83074.0,0.43796485]
[1742272789942,0.0333,83075.0,83074.0,0.70796485]
[1742272790140,0.1536827,83075.0,83074.0,0.43796485]
[1742272790748,0.1536827,83075.0,83074.0,0.69796485]
[1742272790954,0.1536827,83075.0,83074.0,0.43796485]
[1742272791149,0.29994176,83076.0,83075.0,0.1203827]
[1742272791356,0.29994176,83076.0,83075.0,0.4335827]
[1742272791854,0.36444176,83076.0,83075.0,0.5435827]
[1742272792074,0.36444176,83076.0,83075.0,0.5335827]
[1742272792258,0.36444176,83076.0,83075.0,0.4335827]
[1742272792558,0.36444176,83076.0,83075.0,0.4345827]
[1742272792955,0.36444176,83076.0,83075.0,0.5345827]
[1742272793161,0.1848819,83076.0,83075.0,0.4345827]
[1742272795666,0.17955986,83079.0,83078.0,0.1203784]
[1742272795853,0.17955986,83079.0,83078.0,0.5062984]
[1742272798365,0.17955986,83079.0,83078.0,0.5072984]
[1742272798567,0.17955986,83079.0,83078.0,0.7572984]
[1742272798860,0.17955986,83079.0,83078.0,0.5062984]
[1742272799065,0.17955986,83079.0,83078.0,0.5072984]
[1742272800059,0.17955986,83079.0,83078.0,0.7172984]
[1742272800257,0.17955986,83079.0,83078.0,0.6972984]
[1742272800457,0.17955986,83079.0,83078.0,0.7172984]
[1742272800663,0.17955986,83079.0,83078.0,0.5072984]
[1742272800863,0.17955986,83079.0,83078.0,0.7172984]
[1742272801059,0.17955986,83079.0,83078.0,0.5072984]
[1742272801461,0.1819713,83083.0,83080.0,0.060187]
[1742272801462,0.10800533,83081.0,83080.0,0.060187]
[1742272801662,0.10800533,83081.0,83080.0,0.753587]
[1742272803668,0.10800533,83081.0,83080.0,0.843587]
[1742272803859,0.10800533,83081.0,83080.0,0.753587]
[1742272804166,0.10800533,83081.0,83080.0,0.863587]
[1742272804376,0.14400711,83085.0,83080.0,0.863587]
[1742272804377,1e-08,83085.0,83084.0,0.1203697]
[1742272804560,0.0312,83103.0,83095.0,0.1203538]
[1742272804766,0.0312,83103.0,83102.0,0.1203436]
[1742272804976,0.0312,83103.0,83102.0,0.4662236]
[1742272805156,0.0312,83103.0,83102.0,0.6562236]
[1742272805471,0.0312,83103.0,83102.0,0.4662236]
[1742272805674,0.0312,83103.0,83102.0,0.5298236]
[1742272806060,0.0323,83106.0,83105.0,0.1203393]
[1742272806267,0.0323,83106.0,83105.0,0.3703393]
[1742272806861,0.0323,83106.0,83105.0,0.5903393]
[1742272807087,0.0323,83106.0,83105.0,0.5703393]
[1742272807373,0.25091113,83108.0,83107.0,0.1203364]
[1742272807573,0.25091113,83108.0,83107.0,1.2611364]
[1742272807773,0.25091113,83108.0,83107.0,0.7311364]
[1742272807961,0.25091113,83108.0,83107.0,0.8279364]
[1742272808158,0.25091113,83108.0,83107.0,1.19986931]
[1742272808363,0.28632463,83113.0,83112.0,0.1203291]
[1742272808572,0.28632463,83113.0,83112.0,0.4862091]
[1742272808771,0.28632463,83113.0,83112.0,0.6962091]
[1742272808958,0.28632463,83113.0,83112.0,0.7062091]
[1742272809158,0.28632463,83113.0,83112.0,0.5496091]
[1742272809567,0.28632463,83113.0,83112.0,0.55875132]
[1742272810171,0.0306,83118.0,83117.0,0.1203219]
[1742272810471,0.0306,83118.0,83117.0,0.8611219]
[1742272810680,0.1509205,83118.0,83117.0,0.7511219]
[1742272810872,0.1509205,83118.0,83117.0,0.6308]
[1742272811068,0.1509205,83118.0,83117.0,0.8142219]
[1742272811277,0.1509205,83118.0,83117.0,0.7814219]
[1742272811469,0.1529205,83118.0,83117.0,0.7814219]
[1742272812167,0.1529205,83118.0,83117.0,0.7511219]
[1742272817372,0.1529205,83118.0,83117.0,0.6308]
[1742272817676,0.1203291,83112.0,83111.0,0.1203305]
[1742272818671,0.1522291,83112.0,83111.0,0.1203305]
[1742272820579,0.1522291,83112.0,83111.0,0.3603305]
[1742272820580,0.0319,83112.0,83111.0,0.3603305]
[1742272820783,0.0339,83112.0,83111.0,0.8703305]
[1742272821082,0.0339,83112.0,83111.0,0.3903305]
[1742272821289,0.0339,83112.0,83111.0,0.4235305]
[1742272821675,0.0657,83112.0,83111.0,0.4235305]
[1742272822585,0.0657,83112.0,83111.0,0.6235305]
[1742272822896,0.0657,83112.0,83111.0,0.4235305]
[1742272825491,0.002,83112.0,83111.0,0.4235305]
[1742272826286,0.002,83112.0,83111.0,0.6835305]
[1742272826487,0.002,83112.0,83111.0,0.4235305]
[1742272826894,0.002,83112.0,83111.0,0.9235305]
[1742272827088,0.002,83112.0,83111.0,0.4235305]
[1742272827491,0.002,83112.0,83111.0,0.7843305]
[1742272829988,0.002,83112.0,83111.0,0.9743305]
[1742272830189,0.002,83112.0,83111.0,0.7843305]
[1742272830500,0.002,83112.0,83111.0,0.9843305]
[1742272830701,0.002,83112.0,83111.0,0.7843305]
[1742272831401,0.002,83112.0,83111.0,0.8943305]
[1742272831596,0.002,83112.0,83111.0,0.7843305]
[1742272831793,0.1223291,83112.0,83111.0,0.7843305]
[1742272832097,0.002,83112.0,83111.0,0.8843305]
[1742272832500,0.066,83112.0,83111.0,1.0343305]
[1742272832703,0.1863291,83112.0,83111.0,0.7843305]
[1742272833305,0.1863291,83112.0,83111.0,0.9001705]
[1742272834294,0.1843291,83112.0,83111.0,0.8669705]
[1742272835493,0.1843291,83112.0,83111.0,0.5061705]
[1742272836404,0.064,83112.0,83111.0,0.5061705]
[1742272836706,0.064,83112.0,83111.0,0.5692705]
[1742272838206,0.1843291,83112.0,83111.0,0.5386705]
[1742272839295,0.1843291,83112.0,83111.0,0.6386705]
[1742272839501,0.1843291,83112.0,83111.0,0.5386705]
[1742272839909,0.1843291,83112.0,83111.0,0.4761705]
[1742272841099,0.1843291,83112.0,83111.0,0.1203305]
[1742272842898,0.1843291,83112.0,83111.0,0.1525305]
[1742272844898,0.064,83112.0,83111.0,0.1525305]
[1742272845099,0.064,83112.0,83111.0,0.1852305]
[1742272845411,0.1843291,83112.0,83111.0,0.1852305]
[1742272845800,0.064,83112.0,83111.0,0.2852305]
[1742272846006,0.064,83112.0,83111.0,0.5810705]
[1742272847210,0.1203202,83119.0,83118.0,0.1804792]
[1742272847401,0.0326,83119.0,83118.0,0.9071192]
[1742272847707,0.152919,83119.0,83118.0,0.9071192]
[1742272848211,0.152919,83119.0,83118.0,1.0071192]
[1742272848405,0.152919,83119.0,83118.0,0.9071192]
[1742272848608,0.185819,83119.0,83118.0,0.9071192]
[1742272852610,0.185819,83119.0,83118.0,0.5463192]
[1742272853708,0.185819,83119.0,83118.0,0.4304792]
[1742272853914,0.185819,83119.0,83118.0,0.3101602]
[1742272858011,0.185819,83119.0,83118.0,0.25]
[1742272859504,0.185819,83119.0,83118.0,0.3703205]
[1742272860310,0.185819,83119.0,83118.0,0.1203205]
[1742272861616,0.1203219,83117.0,83116.0,0.2361621]
[1742272861921,0.1203219,83117.0,83116.0,0.2690621]
[1742272862117,0.1848219,83117.0,83116.0,0.2690621]
[1742272862820,0.1858219,83117.0,83116.0,0.2690621]
[1742272863217,0.1858219,83117.0,83116.0,0.2361621]
[1742272863623,0.1858219,83117.0,83116.0,0.1203221]
[1742272865217,0.0601631,83114.0,83112.0,0.1530246]
[1742272865424,0.0959,83113.0,83112.0,0.1530246]
[1742272865720,0.2162277,83113.0,83112.0,0.1530246]
[1742272866114,0.1843277,83113.0,83112.0,0.5030246]
[1742272866313,0.1843277,83113.0,83112.0,0.4130246]
[1742272867817,0.32853781,83113.0,83112.0,0.4130246]
[1742272869421,0.20821011,83113.0,83112.0,0.4130246]
[1742272870226,0.32853781,83113.0,83112.0,0.4130246]
[1742272871017,0.1843277,83113.0,83112.0,0.4130246]
[1742272872325,0.1843277,83113.0,83112.0,0.6830246]
[1742272872523,0.1843277,83113.0,83112.0,0.4130246]
[1742272875815,0.1843277,83113.0,83112.0,0.4140246]
[1742272876234,0.1843277,83113.0,83112.0,0.4150246]
[1742272877029,0.1853277,83113.0,83112.0,0.4140246]
[1742272877333,0.1853277,83113.0,83112.0,0.4130246]
[1742272879226,0.32953781,83113.0,83112.0,0.4130246]
[1742272881236,0.32953781,83113.0,83112.0,0.6130246]
[1742272881437,0.32953781,83113.0,83112.0,0.4130246]
[1742272881823,0.32953781,83113.0,83112.0,0.7149246]
[1742272882033,0.32953781,83113.0,83112.0,0.4449246]
[1742272882225,0.32953781,83113.0,83112.0,0.7149246]
[1742272882535,0.1853277,83113.0,83112.0,0.5607246]
[1742272889743,0.1853277,83113.0,83112.0,0.8507246]
[1742272889936,0.1853277,83113.0,83112.0,0.5607246]
[1742272892944,0.2173277,83113.0,83112.0,0.5607246]
[1742272896038,0.2173277,83113.0,83112.0,0.8407246]
[1742272896241,0.2173277,83113.0,83112.0,0.5607246]
[1742272901037,0.2173277,83113.0,83112.0,0.4077]
[1742272901249,0.2173277,83113.0,83112.0,0.5280291]
[1742272901452,0.2173277,83113.0,83112.0,0.26]
[1742272901754,0.2173277,83113.0,83105.0,0.28723171]
[1742272901755,0.1203378,83106.0,83105.0,0.28723171]
[1742272901956,0.4811378,83106.0,83105.0,0.28723171]
[1742272902546,0.5431378,83106.0,83105.0,0.28723171]
[1742272903846,0.1203494,83098.0,83097.0,0.36099662]
[1742272904447,0.1813494,83098.0,83097.0,0.36099662]
[1742272905551,0.1853494,83098.0,83097.0,0.36099662]
[1742272906056,0.1833494,83098.0,83097.0,0.36099662]
[1742272906257,0.1853494,83098.0,83097.0,0.36099662]
[1742272906659,0.1853494,83098.0,83097.0,0.00018054]
[1742272907647,0.1833494,83098.0,83097.0,0.00018054]
[1742272907846,0.1863494,83098.0,83097.0,0.00018054]
[1742272908156,0.1863494,83098.0,83097.0,0.12053144]
[1742272908552,0.1843494,83098.0,83097.0,0.18203144]
[1742272908859,0.1833494,83098.0,83097.0,0.18203144]
[1742272909061,0.1863494,83098.0,83097.0,0.18203144]
[1742272909958,0.33008643,83098.0,83097.0,0.18203144]
[1742272911159,0.32908643,83098.0,83097.0,0.18203144]
[1742272911863,0.32908643,83098.0,83097.0,0.12053144]
[1742272912064,0.32908643,83098.0,83097.0,0.00018054]
[1742272912267,0.32908643,83098.0,83097.0,0.03268054]
[1742272913462,0.32908643,83098.0,83097.0,4e-08]
[1742272913667,0.32908643,83098.0,83076.0,0.1203813]
[1742272913668,0.1203769,83079.0,83076.0,0.1203813]
[1742272913857,0.1203769,83079.0,83072.0,0.1158]
[1742272913858,0.1203769,83079.0,83073.0,0.0601925]
[1742272914062,0.1203769,83079.0,83075.0,0.01185291]
[1742272914361,0.1203769,83079.0,83076.0,0.1203807]
[1742272914563,0.1203813,83076.0,83075.0,0.01185291]
[1742272914766,0.1173885,83071.0,83064.0,0.31536508]
[1742272915065,0.1204204,83049.0,83046.0,0.49007192]
[1742272915369,0.4812204,83049.0,83046.0,0.49007192]
[1742272916064,0.1204204,83049.0,83046.0,0.61049572]
[1742272916256,0.1512204,83049.0,83046.0,0.49007192]
[1742272917062,0.1512204,83049.0,83040.0,0.00018054]
[1742272917063,0.120432,83041.0,83040.0,0.00018054]
[1742272917256,0.481232,83041.0,83040.0,0.00018054]
[1742272917761,0.479232,83041.0,83040.0,0.00018054]
[1742272918151,0.509332,83041.0,83040.0,0.00018054]
[1742272918459,0.512332,83041.0,83040.0,0.00018054]
[1742272921858,0.512332,83041.0,83040.0,0.12061404]
[1742272922154,0.121432,83041.0,83040.0,0.12061404]
[1742272923166,0.121432,83041.0,83040.0,0.00018054]
[1742272923374,0.185132,83041.0,83040.0,0.00018054]
[1742272923764,0.185132,83041.0,83040.0,0.12061404]
[1742272926461,0.185132,83041.0,83040.0,0.00018054]
[1742272926771,0.1269161,83041.0,83028.0,0.11584]
[1742272926959,0.1204494,83029.0,83028.0,0.566736]
[1742272927765,0.1204468,83031.0,83029.0,0.1204494]
[1742272927966,0.1204468,83031.0,83030.0,0.120448]
[1742272928265,0.1204468,83031.0,83030.0,0.360448]
[1742272928570,0.0602209,83035.0,83034.0,0.1204422]
[1742272929165,0.0602209,83035.0,83034.0,0.2363222]
[1742272931268,0.0602209,83035.0,83034.0,0.2691222]
[1742272931957,0.0602209,83035.0,83034.0,0.3016222]
[1742272932264,0.0602209,83035.0,83034.0,0.18118]
[1742272932471,0.0602209,83035.0,83034.0,0.14838]
[1742272932969,0.0921209,83035.0,83034.0,0.14838]
[1742272933171,0.1204509,83028.0,83021.0,0.1532548]
[1742272933363,0.1204494,83029.0,83028.0,0.0304]
[1742272933563,0.1204494,83029.0,83028.0,0.32778]
[1742272933964,0.1204494,83029.0,83028.0,0.4482309]
[1742272934467,0.1204494,83029.0,83028.0,0.0619]
[1742272934662,0.1204494,83029.0,83028.0,0.0315]
[1742272934863,0.1204494,83029.0,83028.0,0.0325]
[1742272935179,0.1204494,83029.0,83028.0,0.1549509]
[1742272935674,0.1204494,83029.0,83028.0,0.1853509]
[1742272938879,0.1204494,83029.0,83028.0,0.3012309]
[1742272940171,0.1806716,83031.0,83030.0,0.120448]
[1742272941778,0.1806716,83031.0,83030.0,0.122448]
[1742272944873,0.1806716,83031.0,83030.0,0.392448]
[1742272945272,0.1806651,83036.0,83035.0,0.1204393]
[1742272945482,0.2408868,83036.0,83035.0,0.2165393]
[1742272945674,0.2408868,83036.0,83035.0,0.3324193]
[1742272946076,0.3011086,83036.0,83035.0,0.17948]
[1742272947380,0.3021086,83036.0,83035.0,0.17948]
[1742272947569,0.3021086,83036.0,83035.0,0.11588]
[1742272947778,0.1204451,83032.0,83031.0,0.0306]
[1742272947972,0.1204451,83032.0,83031.0,0.0406]
[1742272948174,0.1204451,83032.0,83031.0,0.1610465]
[1742272948374,0.1204465,83031.0,83030.0,0.1204472]
[1742272948882,0.1204509,83029.0,83028.0,0.0329]
[1742272949186,0.1194509,83029.0,83028.0,0.0329]
[1742272949483,0.1184509,83029.0,83028.0,0.1533509]
[1742272950386,0.1204581,83023.0,83022.0,0.1761096]
[1742272950580,0.1194581,83023.0,83022.0,0.2418096]
[1742272950973,0.1194581,83023.0,83022.0,0.18158]
[1742272951171,0.120461,83021.0,83020.0,0.00018066]
[1742272951369,0.120461,83021.0,83020.0,0.11606066]
[1742272951575,0.119461,83021.0,83020.0,0.11606066]
[1742272951777,0.116461,83021.0,83020.0,0.11606066]
[1742272952084,0.147561,83021.0,83020.0,0.11606066]
[1742272952286,0.147561,83021.0,83020.0,0.12006066]
[1742272952488,0.147561,83021.0,83020.0,0.12406066]
[1742272953377,0.147561,83021.0,83020.0,0.00818066]
[1742272953686,0.1204901,83001.0,83000.0,0.3966154]
[1742272953883,0.1204901,83001.0,83000.0,0.3361253]
[1742272954079,0.1204901,83001.0,83000.0,0.2761253]
[1742272954273,0.1204901,83001.0,83000.0,0.3368253]
[1742272955584,0.1204901,83001.0,83000.0,0.3398253]
[1742272959280,0.1204901,83001.0,83000.0,0.103]
[1742272959479,0.1205046,82991.0,82990.0,0.0636]
[1742272959680,0.1205046,82991.0,82990.0,0.17948]
[1742272959874,0.0973,82993.0,82980.0,0.0662601]
[1742272960077,0.0314,82990.0,82981.0,0.0602595]
[1742272960279,0.1205111,82987.0,82986.0,0.120511]
[1742272960776,0.0301,82989.0,82988.0,0.1205089]
[1742272960981,0.1204935,83001.0,83000.0,0.1204872]
[1742272961182,0.1204944,82999.0,82998.0,0.120494]
[1742272961387,0.091045,83001.0,83000.0,0.1204915]
[1742272961388,0.0308,83001.0,83000.0,0.1204915]
[1742272961887,0.1512901,83001.0,83000.0,0.1204915]
[1742272962186,0.1532901,83001.0,83000.0,0.0314]
[1742272962576,0.1532901,83001.0,83000.0,0.1518915]
[1742272962776,0.1532901,83001.0,83000.0,0.1842915]
[1742272963376,0.1532901,83001.0,83000.0,0.0638]
[1742272963789,0.1532901,83001.0,83000.0,0.1842915]
[1742272963973,0.1562901,83001.0,83000.0,0.1842915]
[1742272965589,0.1562901,83001.0,83000.0,0.0638]
[1742272965992,0.1562901,83001.0,83000.0,0.1842915]
[1742272966192,0.005,83001.0,83000.0,0.4742915]
[1742272966887,0.1254901,83001.0,83000.0,0.48632905]
[1742272967787,0.1876901,83001.0,83000.0,0.4742915]
[1742272967991,0.1204915,83000.0,82999.0,0.3608]
[1742272968187,0.1204915,83000.0,82999.0,0.481293]
[1742272969382,0.1844915,83000.0,82999.0,0.481293]
[1742272969888,0.1844915,83000.0,82999.0,0.544793]
[1742272970289,0.1864915,83000.0,82999.0,0.544793]
[1742272970487,0.1546915,83000.0,82999.0,0.794793]
[1742272970691,0.1244915,83000.0,82999.0,0.794793]
[1742272972996,0.1244915,83000.0,82999.0,0.894793]
[1742272973192,0.004,83000.0,82999.0,0.794793]
[1742272973382,0.004,83000.0,82999.0,1.054793]
[1742272973585,0.004,83000.0,82999.0,0.794793]
[1742272975392,0.1244915,83000.0,82999.0,0.7843]
[1742272975590,0.1898915,83000.0,82999.0,0.794793]
[1742272976995,0.004,83000.0,82999.0,0.794793]
[1742272977294,0.1204762,83011.0,83008.0,0.1204799]
[1742272977483,0.1204762,83011.0,83008.0,0.4963999]
[1742272977689,0.26403923,83009.0,83008.0,0.4963999]
[1742272978096,0.26403923,83009.0,83008.0,0.2987999]
[1742272978297,0.32943923,83009.0,83008.0,0.2987999]
[1742272978690,0.18805916,83009.0,83008.0,0.2987999]
[1742272979793,0.19105916,83009.0,83008.0,0.2987999]
[1742272981992,0.19105916,83009.0,83008.0,0.14712]
[1742272982397,0.19105916,83009.0,83008.0,0.2363999]
[1742272983200,0.37069642,83009.0,83008.0,0.2363999]
[1742272983499,0.37069642,83009.0,83008.0,0.3000999]